fUST/lending_fUST_20250131
["ID","MTS","AMOUNT","RATE_DAILY","PERIOD"]
[350976629,1738261839953,-2311.58,0.00017397,2]
[350976630,1738261839963,-500.0,0.00017397,2]
[350976631,1738261839973,-535.2,0.00017397,2]
[350976632,1738261839984,-500.0,0.00017397,2]
[350976634,1738261839994,-380.487517,0.00017397,2]
[350976635,1738261840004,-380.487517,0.00017397,2]
[350976636,1738261840013,-1131.124945,0.00017397,2]
[350976637,1738261840023,-500.0,0.00017397,2]
[350976638,1738261840035,-539.03,0.00017397,2]
[350976640,1738261840047,-1131.124945,0.00017397,2]
[350976641,1738261840056,-1483.68,0.00017397,2]
[350976642,1738261840066,-500.0,0.00017397,2]
[350976643,1738261840076,-500.98,0.00017397,2]
[350976644,1738261840086,-500.0,0.00017397,2]
[350976645,1738261840095,-500.0,0.00017397,2]
[350976646,1738261840105,-547.36,0.00017397,2]
[350976648,1738261840115,-500.0,0.00017397,2]
[350976649,1738261840124,-500.0,0.00017446,2]
[350976650,1738261840134,-500.0,0.00017498,2]
[350976651,1738261840144,-229.054483,0.00017532,2]
[350976652,1738261840153,-229.054483,0.00017532,2]
[350976653,1738261840163,-2666.1,0.00017532,2]
[350976654,1738261840172,-500.0,0.00017533,2]
[350976655,1738261840182,-500.0,0.00017533,2]
[350976656,1738261840192,-500.0,0.00017533,2]
[350976657,1738261840202,-152.904828,0.00017534,2]
[350976658,1738261840212,-241.668256,0.00017534,2]
[350976659,1738261840221,-151.0,0.00017534,2]
[350976660,1738261840231,-151.0,0.00017534,2]
[350976661,1738261840240,-151.0,0.00017534,2]
[350976662,1738261840249,-151.0,0.00017534,2]
[350976663,1738261840259,-500.0,0.00017534,2]
[350976665,1738261840275,-500.0,0.00017534,2]
[350976666,1738261840294,-500.0,0.00017534,2]
[350976667,1738261840309,-151.0,0.00017534,2]
[350976668,1738261840325,-266.054822,0.00017534,2]
[350976669,1738261840338,-151.0,0.00017534,2]
[350976670,1738261840351,-151.0,0.00017534,2]
[350976671,1738261840365,-151.0,0.00017534,2]
[350976672,1738261840378,-151.0,0.00017534,2]
[350976673,1738261840393,-500.0,0.00017534,2]
[350976674,1738261840407,-500.0,0.00017534,2]
[350976675,1738261840421,-1126.76,0.00017534,2]
[350976676,1738261840434,-500.0,0.00017534,2]
[350976677,1738261840449,-7296.28,0.00017534,2]
[350976678,1738261840464,-500.0,0.00017534,2]
[350976679,1738261840478,-500.0,0.00017534,2]
[350976680,1738261840491,-500.0,0.00017534,2]
[350976681,1738261840506,-537.84,0.00017534,2]
[350976682,1738261840519,-151.0,0.00017534,2]
[350976683,1738261840538,-500.0,0.00017534,2]
[350976684,1738261840550,-500.0,0.00017534,2]
[350976685,1738261840565,-500.0,0.00017534,2]
[350976686,1738261840576,-1197.65,0.00017534,2]
[350976687,1738261840587,-500.0,0.00017534,2]
[350976688,1738261840600,-500.0,0.00017534,2]
[350976689,1738261840613,-1102.75,0.00017534,2]
[350976690,1738261840626,-2311.58,0.00017534,2]
[350976691,1738261840639,-500.0,0.00017534,2]
[350976692,1738261840652,-535.2,0.00017534,2]
[350976693,1738261840667,-500.0,0.00017534,2]
[350976694,1738261840682,-539.03,0.00017534,2]
[350976695,1738261840698,-1483.68,0.00017534,2]
[350976696,1738261840717,-500.0,0.00017534,2]
[350976697,1738261840730,-500.98,0.00017534,2]
[350976698,1738261840741,-500.0,0.00017534,2]
[350976699,1738261840753,-500.0,0.00017534,2]
[350976700,1738261840765,-547.36,0.00017534,2]
[350976701,1738261840780,-618.49487204,0.00017534,2]
[350976702,1738261840798,-151.0,0.000176,2]
[350976703,1738261840812,-1786.44333764,0.000176,2]
[350976704,1738261840824,-151.0,0.00017669,2]
[350976705,1738261840835,-151.0,0.00017669,2]
[350976706,1738261840848,-151.0,0.00017669,2]
[350976707,1738261840861,-151.0,0.00017669,2]
[350976708,1738261840875,-151.0,0.00017669,2]
[350976709,1738261840887,-2666.1,0.00017669,2]
[350976710,1738261840898,-151.0,0.00017669,2]
[350976711,1738261840910,-500.0,0.0001767,2]
[350976712,1738261840922,-151.0,0.0001767,2]
[350976713,1738261840934,-151.0,0.0001767,2]
[350976714,1738261840945,-380.487517,0.0001767,2]
[350976715,1738261840957,-380.487517,0.0001767,2]
[350976716,1738261840969,-151.0,0.00017671,2]
[350976717,1738261840981,-229.054483,0.00017671,2]
[350976718,1738261840992,-229.054483,0.00017671,2]
[350976719,1738261841004,-500.0,0.00017671,2]
[350976720,1738261841016,-500.0,0.00017671,2]
[350976721,1738261841027,-322.523349,0.00017671,2]
[350976722,1738261841043,-322.523349,0.00017671,2]
[350976723,1738261841054,-500.0,0.00017671,2]
[350976724,1738261841065,-1126.76,0.00017671,2]
[350976725,1738261841076,-500.0,0.00017671,2]
[350976726,1738261841088,-7296.28,0.00017671,2]
[350976727,1738261841099,-500.0,0.00017671,2]
[350976728,1738261841109,-500.0,0.00017671,2]
[350976729,1738261841121,-500.0,0.00017671,2]
[350976730,1738261841132,-537.84,0.00017671,2]
[350976731,1738261841147,-500.0,0.00017671,2]
[350976732,1738261841159,-500.0,0.00017671,2]
[350976733,1738261841170,-500.0,0.00017671,2]
[350976734,1738261841181,-1197.65,0.00017671,2]
[350976735,1738261841191,-500.0,0.00017671,2]
[350976736,1738261841202,-500.0,0.00017671,2]
[350976737,1738261841214,-1102.75,0.00017671,2]
[350976738,1738261841225,-2311.58,0.00017671,2]
[350976739,1738261841236,-500.0,0.00017671,2]
[350976740,1738261841248,-535.2,0.00017671,2]
[350976741,1738261841259,-1131.124945,0.00017671,2]
[350976742,1738261841271,-539.03,0.00017671,2]
[350976743,1738261841287,-1131.124945,0.00017671,2]
[350976744,1738261841299,-500.0,0.00017671,2]
[350976745,1738261841310,-1483.68,0.00017671,2]
[350976746,1738261841322,-500.0,0.00017671,2]
[350976747,1738261841333,-500.98,0.00017671,2]
[350976748,1738261841344,-500.0,0.00017671,2]
[350976749,1738261841356,-547.36,0.00017671,2]
[350976750,1738261841368,-1383.32794462,0.000177,2]
[350976751,1738261841379,-2666.1,0.00017806,2]
[350976752,1738261841391,-398.22,0.00017807,2]
[350976753,1738261841402,-151.0,0.00017808,2]
[350976754,1738261841413,-151.0,0.00017808,2]
[350976755,1738261841425,-151.0,0.00017808,2]
[350976756,1738261841436,-151.0,0.00017808,2]
[350976757,1738261841447,-500.0,0.00017808,2]
[350976758,1738261841460,-500.0,0.00017808,2]
[350976759,1738261841475,-151.0,0.00017808,2]
[350976760,1738261841486,-151.0,0.00017808,2]
[350976761,1738261841615,-500.0,0.00017808,2]
[350976762,1738261841631,-1126.76,0.00017808,2]
[350976763,1738261841641,-500.0,0.00017808,2]
[350976764,1738261841650,-7296.28,0.00017808,2]
[350976765,1738261841660,-377.45,0.00017808,2]
[350976766,1738261841670,-500.0,0.00017808,2]
[350976767,1738261841680,-537.84,0.00017808,2]
[350976768,1738261841689,-500.0,0.00017808,2]
[350976769,1738261841699,-500.0,0.00017808,2]
[350976770,1738261841710,-529.3,0.00017808,2]
[350976771,1738261841720,-1197.65,0.00017808,2]
[350976772,1738261841729,-572.37,0.00017808,2]
[350976773,1738261841739,-500.0,0.00017808,2]
[350976774,1738261841750,-1102.75,0.00017808,2]
[350976775,1738261841759,-2311.58,0.00017808,2]
[350976776,1738261841769,-535.2,0.00017808,2]
[350976777,1738261841784,-539.03,0.00017808,2]
[350976778,1738261841794,-1483.68,0.00017808,2]
[350976779,1738261841803,-500.98,0.00017808,2]
[350976780,1738261841813,-547.36,0.00017808,2]
[350976781,1738261841823,-151.0,0.00017943,2]
[350976782,1738261841832,-151.0,0.00017943,2]
[350976783,1738261841842,-2666.1,0.00017943,2]
[350976784,1738261841851,-151.0,0.00017943,2]
[350976785,1738261841860,-229.054483,0.00017945,2]
[350976786,1738261841870,-229.054483,0.00017945,2]
[350976787,1738261841880,-151.0,0.00017945,2]
[350976788,1738261841889,-500.0,0.00017945,2]
[350976789,1738261841898,-322.523349,0.00017945,2]
[350976790,1738261841908,-322.523349,0.00017945,2]
[350976791,1738261841918,-151.0,0.00017945,2]
[350976792,1738261841927,-151.0,0.00017945,2]
[350976793,1738261841939,-151.0,0.00017945,2]
[350976794,1738261841949,-151.0,0.00017945,2]
[350976795,1738261841958,-500.0,0.00017945,2]
[350976796,1738261841968,-1126.76,0.00017945,2]
[350976797,1738261841977,-500.0,0.00017945,2]
[350976798,1738261841987,-7296.28,0.00017945,2]
[350976799,1738261841996,-601.0,0.00017945,2]
[350976800,1738261842006,-537.84,0.00017945,2]
[350976801,1738261842015,-205.32,0.00017945,2]
[350976802,1738261842025,-151.0,0.00017945,2]
[350976803,1738261842038,-500.0,0.00017945,2]
[350976804,1738261842048,-1197.65,0.00017945,2]
[350976805,1738261842058,-150.0,0.00017945,2]
[350976806,1738261842068,-296.795859,0.00017945,2]
[350976807,1738261842078,-151.0,0.00017945,2]
[350976808,1738261842087,-1102.75,0.00017945,2]
[350976809,1738261842097,-2311.58,0.00017945,2]
[350976810,1738261842107,-535.2,0.00017945,2]
[350976811,1738261842116,-380.487517,0.00017945,2]
[350976812,1738261842126,-380.487517,0.00017945,2]
[350976813,1738261842136,-1131.124945,0.00017945,2]
[350976814,1738261842146,-539.03,0.00017945,2]
[350976815,1738261842156,-1131.124945,0.00017945,2]
[350976816,1738261842166,-1483.68,0.00017945,2]
[350976817,1738261842181,-500.98,0.00017945,2]
[350976818,1738261842191,-547.36,0.00017945,2]
[350976819,1738261842200,-420.0,0.00017962,2]
[350976820,1738261842210,-500.0,0.00018022,2]
[350976821,1738261842220,-1000.0,0.00018046,2]
[350976822,1738261842229,-2666.1,0.0001808,2]
[350976823,1738261842239,-151.0,0.00018082,2]
[350976824,1738261842249,-561.68,0.00018082,2]
[350976825,1738261842258,-500.0,0.00018082,2]
[350976826,1738261842268,-1126.76,0.00018082,2]
[350976827,1738261842278,-500.0,0.00018082,2]
[350976828,1738261842288,-7296.28,0.00018082,2]
[350976829,1738261842297,-537.84,0.00018082,2]
[350976830,1738261842306,-500.0,0.00018082,2]
[350976831,1738261842316,-1197.65,0.00018082,2]
[350976832,1738261842325,-1102.75,0.00018082,2]
[350976833,1738261842335,-2311.58,0.00018082,2]
[350976834,1738261842345,-535.2,0.00018082,2]
[350976835,1738261842354,-539.03,0.00018082,2]
[350976836,1738261842363,-1483.68,0.00018082,2]
[350976837,1738261842373,-500.98,0.00018082,2]
[350976838,1738261842382,-547.36,0.00018082,2]
[350976839,1738261842391,-151.0,0.000181,2]
[350976840,1738261842401,-151.0,0.00018217,2]
[350976841,1738261842411,-151.0,0.00018217,2]
[350976842,1738261842420,-2666.1,0.00018217,2]
[350976843,1738261842431,-151.0,0.00018219,2]
[350976844,1738261842441,-151.0,0.00018219,2]
[350976845,1738261842451,-151.0,0.00018219,2]
[350976846,1738261842460,-151.0,0.00018219,2]
[350976847,1738261842470,-151.0,0.00018219,2]
[350976848,1738261842480,-216.67308,0.00018219,2]
[350976849,1738261842490,-151.0,0.00018219,2]
[350976850,1738261842500,-500.0,0.00018219,2]
[350976851,1738261842510,-500.0,0.00018219,2]
[350976852,1738261842519,-7296.28,0.00018219,2]
[350976853,1738261842531,-537.84,0.00018219,2]
[350976854,1738261842541,-151.0,0.00018219,2]
[350976855,1738261842551,-500.0,0.00018219,2]
[350976856,1738261842562,-1197.65,0.00018219,2]
[350976857,1738261842572,-151.0,0.00018219,2]
[350976858,1738261842582,-1102.75,0.00018219,2]
[350976859,1738261842591,-2311.58,0.00018219,2]
[350976860,1738261842601,-535.2,0.00018219,2]
[350976861,1738261842611,-380.487517,0.00018219,2]
[350976862,1738261842621,-380.487517,0.00018219,2]
[350976863,1738261842630,-539.03,0.00018219,2]
[350976864,1738261842640,-1483.68,0.00018219,2]
[350976865,1738261842650,-500.98,0.00018219,2]
[350976866,1738261842660,-158.263,0.00018306,2]
[350976867,1738261842671,-322.523349,0.00018354,2]
[350976868,1738261842680,-322.523349,0.00018354,2]
[350976869,1738261842689,-151.0,0.00018354,2]
[350976870,1738261842698,-151.0,0.00018354,2]
[350976872,1738261842709,-151.0,0.00018354,2]
[350976873,1738261842719,-2666.1,0.00018354,2]
[350976874,1738261842729,-151.0,0.00018354,2]
[350976875,1738261842739,-229.054483,0.00018356,2]
[350976876,1738261842750,-229.054483,0.00018356,2]
[350976877,1738261842759,-151.0,0.00018356,2]
[350976878,1738261842768,-500.0,0.00018356,2]
[350976879,1738261842778,-500.0,0.00018356,2]
[350976880,1738261842790,-2356.51839252,0.00018356,2]
[350976883,1738261842874,-2826.93354662,0.00018356,2]
[350976886,1738261843131,-537.27,0.00016438,2]
[350976887,1738261843141,-537.27,0.00016575,2]
[350976888,1738261843150,-151.0,0.00016712,2]
[350976889,1738261843160,-537.27,0.00016712,2]
[350976890,1738261843169,-1204.30763377,0.00016849,5]
[350976891,1738261843178,-537.27,0.00016849,2]
[350976892,1738261843188,-151.0,0.00016985,2]
[350976893,1738261843198,-537.27,0.00016986,2]
[350976894,1738261843208,-151.0,0.00017123,2]
[350976895,1738261843217,-537.27,0.00017123,2]
[350976896,1738261843227,-537.27,0.0001726,2]
[350976897,1738261843236,-151.0,0.00017397,2]
[350976898,1738261843245,-537.27,0.00017397,2]
[350976899,1738261843255,-537.27,0.00017534,2]
[350976900,1738261843264,-153.902647,0.0001767,2]
[350976901,1738261843273,-537.27,0.00017671,2]
[350976902,1738261843285,-547.36,0.00018219,2]
[350976903,1738261843294,-2112.82806086,0.00018356,2]
[350976904,1738261843304,-537.84,0.00018356,2]
[350976905,1738261843314,-500.0,0.00018356,2]
[350976906,1738261843324,-1197.65,0.00018356,2]
[350976907,1738261843335,-1102.75,0.00018356,2]
[350976908,1738261843345,-2311.58,0.00018356,2]
[350976909,1738261843354,-535.2,0.00018356,2]
[350976910,1738261843364,-1131.124945,0.00018356,2]
[350976911,1738261843373,-539.03,0.00018356,2]
[350976913,1738261843383,-1131.124945,0.00018356,2]
[350976915,1738261843392,-1483.68,0.00018356,2]
[350976917,1738261843402,-500.98,0.00018356,2]
[350976919,1738261843411,-547.36,0.00018356,2]
[350976920,1738261843421,-500.0,0.00018464,2]
[350976921,1738261843431,-2224.64033757,0.00018491,2]
[350976922,1738261843470,-30.14138023,0.00018491,2]
[350976923,1738261843527,-537.27,0.00017808,2]
[350976924,1738261843539,-537.27,0.00017945,2]
[350976925,1738261843549,-537.27,0.00018082,2]
[350976926,1738261843560,-537.27,0.00018219,2]
[350976927,1738261843569,-537.27,0.00018356,2]
[350976928,1738261843579,-411.3182822,0.00018491,2]
[350976929,1738261843588,-151.0,0.00018493,2]
[350976930,1738261843598,-500.0,0.00018493,2]
[350976931,1738261843608,-5836.51518576,0.00018493,2]
[350976959,1738262437086,172.618221,0.00013973,2]
[350976960,1738262749094,-300.0,0.00015802,2]
[350976961,1738262749117,-200.90582795,0.00015803,2]
[350976963,1738262828085,-245.24051702,0.00015644,2]
[350976964,1738262841088,-123.54636168,0.00015644,2]
[350976965,1738262841111,-300.0,0.00015802,2]
[350976966,1738262841133,-9866.09802047,0.00015803,2]
[350976976,1738262948085,-1960.0,0.00015645,2]
[350976977,1738262950079,-2940.0,0.00015645,2]
[350976978,1738262950101,-205.0,0.00015802,2]
[350976979,1738262950124,-14734.64779832,0.00015803,2]
[350976980,1738262963105,-98.34835326,0.00015803,2]
[350976981,1738262966094,-160.6318,0.00016338,2]
[350977006,1738263040498,-129.07535077,0.00016338,2]
[350977007,1738263040508,-611.77036824,0.00016438,2]
[350977008,1738263040518,-88.43445355,0.00016438,2]
[350977009,1738263040530,-411.56554645,0.00016438,2]
[350977010,1738263040540,-500.0,0.00016438,2]
[350977011,1738263040550,-500.0,0.00016438,2]
[350977012,1738263040560,-500.0,0.00016438,2]
[350977013,1738263040570,-98.09784317,0.00016438,2]
[350977046,1738263043410,-55.6562031,0.00016438,2]
[350977048,1738263043422,-178.53921709,0.00016438,2]
[350977050,1738263043434,-500.0,0.00016438,2]
[350977052,1738263043443,-500.0,0.00016438,2]
[350977054,1738263043454,-500.0,0.00016438,2]
[350977055,1738263043463,-500.0,0.00016438,2]
[350977056,1738263043473,-500.0,0.00016438,2]
[350977057,1738263043482,-500.0,0.00016438,2]
[350977058,1738263043492,-500.0,0.00016438,2]
[350977059,1738263043502,-500.0,0.00016438,2]
[350977060,1738263043511,-500.0,0.00016438,2]
[350977061,1738263043521,-500.67705575,0.00016438,2]
[350977062,1738263043531,-500.0,0.00016438,2]
[350977063,1738263043540,-500.0,0.00016438,2]
[350977064,1738263043549,-500.0,0.00016438,2]
[350977065,1738263043559,-161.33961631,0.00016438,2]
[350977066,1738263043568,-500.0,0.00016438,2]
[350977067,1738263043577,-500.0,0.00016438,2]
[350977068,1738263043587,-500.0,0.00016438,2]
[350977069,1738263043597,-500.0,0.00016438,2]
[350977071,1738263043606,-429.05594589,0.00016438,2]
[350977072,1738263043618,-623.85030049,0.00016438,2]
[350977073,1738263043627,-500.0,0.00016438,2]
[350977074,1738263043637,-331.08429158,0.00016438,2]
[350977075,1738263043646,-500.0,0.00016438,2]
[350977076,1738263043655,-508.05234027,0.00016438,2]
[350977077,1738263043665,-506.39749754,0.00016438,2]
[350977078,1738263043674,-500.0,0.00016438,2]
[350977079,1738263043684,-500.0,0.00016438,2]
[350977080,1738263043694,-505.66836786,0.00016438,2]
[350977081,1738263043703,-500.0,0.00016438,2]
[350977082,1738263043713,-866.84,0.00016438,2]
[350977083,1738263043722,-510.56087216,0.00016438,2]
[350977084,1738263043732,-503.95402073,0.00016438,2]
[350977085,1738263043742,-500.0,0.00016438,2]
[350977086,1738263043752,-508.59996417,0.00016438,2]
[350977087,1738263043762,-500.0,0.00016438,2]
[350977088,1738263043772,-500.0,0.00016438,2]
[350977089,1738263043781,-500.0,0.00016438,2]
[350977090,1738263043791,-500.0,0.00016438,2]
[350977091,1738263043801,-500.0,0.00016438,2]
[350977092,1738263043810,-500.0,0.00016438,2]
[350977093,1738263043820,-500.0,0.00016438,2]
[350977094,1738263043829,-200.0,0.00016438,2]
[350977095,1738263043839,-580.6,0.00016438,2]
[350977096,1738263043848,-2492.92,0.00016438,2]
[350977097,1738263043857,-500.0,0.00016438,2]
[350977098,1738263043870,-602.31478391,0.00016438,2]
[350977099,1738263043879,-500.0,0.00016438,2]
[350977100,1738263043888,-500.0,0.00016438,2]
[350977101,1738263043898,-500.0,0.00016438,2]
[350977102,1738263043907,-1152.88,0.00016438,2]
[350977103,1738263043916,-500.0,0.00016438,2]
[350977104,1738263043925,-500.0,0.00016438,2]
[350977105,1738263043935,-500.0,0.00016438,2]
[350977106,1738263043944,-561.18119181,0.00016575,2]
[350977107,1738263043954,-866.84,0.00016575,2]
[350977108,1738263044086,-500.0,0.00016575,2]
[350977109,1738263044096,-500.0,0.00016575,2]
[350977110,1738263044106,-500.0,0.00016575,2]
[350977111,1738263044118,-500.0,0.00016575,2]
[350977112,1738263044130,-580.6,0.00016575,2]
[350977113,1738263044139,-2492.92,0.00016575,2]
[350977114,1738263044151,-500.0,0.00016575,2]
[350977115,1738263044160,-500.0,0.00016575,2]
[350977116,1738263044169,-500.0,0.00016575,2]
[350977117,1738263044180,-500.0,0.00016575,2]
[350977118,1738263044191,-1152.88,0.00016575,2]
[350977119,1738263044200,-500.0,0.00016575,2]
[350977120,1738263044209,-427.50783395,0.00016575,2]
[350977121,1738263044219,-152.553879,0.00016711,2]
[350977122,1738263044229,-866.84,0.00016712,2]
[350977123,1738263044239,-500.0,0.00016712,2]
[350977124,1738263044249,-500.0,0.00016712,2]
[350977125,1738263044259,-500.0,0.00016712,2]
[350977126,1738263044269,-500.0,0.00016712,2]
[350977127,1738263044279,-580.6,0.00016712,2]
[350977128,1738263044288,-2492.92,0.00016712,2]
[350977129,1738263044298,-500.0,0.00016712,2]
[350977130,1738263044311,-500.0,0.00016712,2]
[350977131,1738263044321,-500.0,0.00016712,2]
[350977132,1738263044331,-500.0,0.00016712,2]
[350977133,1738263044340,-1152.88,0.00016712,2]
[350977134,1738263044350,-500.0,0.00016712,2]
[350977135,1738263044359,-866.84,0.00016849,2]
[350977136,1738263044372,-500.0,0.00016849,2]
[350977137,1738263044381,-500.0,0.00016849,2]
[350977138,1738263044391,-500.0,0.00016849,2]
[350977139,1738263044400,-500.0,0.00016849,2]
[350977140,1738263044410,-580.6,0.00016849,2]
[350977141,1738263044420,-2492.92,0.00016849,2]
[350977142,1738263044430,-500.0,0.00016849,2]
[350977143,1738263044440,-500.0,0.00016849,2]
[350977144,1738263044450,-500.0,0.00016849,2]
[350977145,1738263044459,-500.0,0.00016849,2]
[350977146,1738263044469,-1152.88,0.00016849,2]
[350977147,1738263044479,-500.0,0.00016849,2]
[350977148,1738263044488,-866.84,0.00016986,2]
[350977149,1738263044497,-500.0,0.00016986,2]
[350977150,1738263044507,-500.0,0.00016986,2]
[350977151,1738263044517,-500.0,0.00016986,2]
[350977152,1738263044527,-500.0,0.00016986,2]
[350977153,1738263044538,-580.6,0.00016986,2]
[350977154,1738263044547,-2492.92,0.00016986,2]
[350977155,1738263044557,-607.53,0.00016986,2]
[350977156,1738263044566,-500.0,0.00016986,2]
[350977157,1738263044575,-500.0,0.00016986,2]
[350977158,1738263044584,-500.0,0.00016986,2]
[350977159,1738263044594,-1152.88,0.00016986,2]
[350977160,1738263044603,-500.0,0.00016986,2]
[350977161,1738263044612,-866.84,0.00017123,2]
[350977162,1738263044626,-500.0,0.00017123,2]
[350977163,1738263044637,-500.0,0.00017123,2]
[350977164,1738263044646,-500.0,0.00017123,2]
[350977165,1738263044656,-500.0,0.00017123,2]
[350977166,1738263044665,-580.6,0.00017123,2]
[350977167,1738263044674,-2492.92,0.00017123,2]
[350977168,1738263044684,-500.0,0.00017123,2]
[350977169,1738263044693,-500.0,0.00017123,2]
[350977170,1738263044703,-500.0,0.00017123,2]
[350977171,1738263044712,-1152.88,0.00017123,2]
[350977172,1738263044722,-500.0,0.00017123,2]
[350977173,1738263044731,-289.70715072,0.00017179,2]
[350977174,1738263044740,-866.84,0.0001726,2]
[350977175,1738263044751,-500.0,0.0001726,2]
[350977176,1738263044761,-500.0,0.0001726,2]
[350977177,1738263044770,-500.0,0.0001726,2]
[350977178,1738263044779,-500.0,0.0001726,2]
[350977179,1738263044789,-580.6,0.0001726,2]
[350977180,1738263044798,-2492.92,0.0001726,2]
[350977181,1738263044808,-500.0,0.0001726,2]
[350977182,1738263044817,-500.0,0.0001726,2]
[350977183,1738263044826,-500.0,0.0001726,2]
[350977184,1738263044836,-1152.88,0.0001726,2]
[350977185,1738263044846,-500.0,0.0001726,2]
[350977186,1738263044856,-866.84,0.00017397,2]
[350977187,1738263044868,-500.0,0.00017397,2]
[350977188,1738263044877,-500.0,0.00017397,2]
[350977189,1738263044887,-500.0,0.00017397,2]
[350977190,1738263044896,-500.0,0.00017397,2]
[350977191,1738263044906,-580.6,0.00017397,2]
[350977192,1738263044916,-2492.92,0.00017397,2]
[350977193,1738263044926,-500.0,0.00017397,2]
[350977194,1738263044937,-500.0,0.00017397,2]
[350977195,1738263044946,-500.0,0.00017397,2]
[350977196,1738263044957,-1152.88,0.00017397,2]
[350977197,1738263044967,-500.0,0.00017397,2]
[350977198,1738263044977,-866.84,0.00017534,2]
[350977199,1738263044987,-500.0,0.00017534,2]
[350977200,1738263044997,-500.0,0.00017534,2]
[350977201,1738263045007,-509.05,0.00017534,2]
[350977202,1738263045016,-500.0,0.00017534,2]
[350977203,1738263045027,-580.6,0.00017534,2]
[350977204,1738263045036,-1792.20096564,0.00017534,2]
[350977207,1738263046560,-152.0,0.00017202,2]
[350977208,1738263046570,-700.71903436,0.00017534,2]
[350977209,1738263046579,-500.0,0.00017534,2]
[350977210,1738263046588,-500.0,0.00017534,2]
[350977211,1738263046598,-500.0,0.00017534,2]
[350977212,1738263046607,-1152.88,0.00017534,2]
[350977213,1738263046617,-500.0,0.00017534,2]
[350977214,1738263046628,-866.84,0.00017671,2]
[350977215,1738263046637,-500.0,0.00017671,2]
[350977216,1738263046647,-500.0,0.00017671,2]
[350977217,1738263046656,-316.89,0.00017671,2]
[350977218,1738263046666,-580.6,0.00017671,2]
[350977219,1738263046675,-2492.92,0.00017671,2]
[350977220,1738263046685,-335.46283593,0.00017671,2]
[350977221,1738263046695,-426.43,0.00017671,2]
[350977222,1738263046705,-351.45736995,0.00017671,2]
[350977223,1738263046715,-1152.88,0.00017671,2]
[350977224,1738263046724,-340.75,0.00017671,2]
[350977225,1738263046733,-500.0,0.0001779,2]
[350977226,1738263046743,-483.93865186,0.0001779,2]
[350977227,1738263046754,-500.0,0.00017807,2]
[350977228,1738263046763,-279.5109211,0.00017807,2]
[350977229,1738263046773,-500.0,0.00017807,2]
[350977230,1738263046782,-500.0,0.00017807,2]
[350977231,1738263046791,-500.0,0.00017807,2]
[350977232,1738263046801,-446.88463974,0.00017807,2]
[350977233,1738263046811,-500.0,0.00017807,2]
[350977234,1738263046820,-866.84,0.00017808,2]
[350977235,1738263046829,-500.0,0.00017808,2]
[350977236,1738263046838,-500.0,0.00017808,2]
[350977237,1738263046847,-580.6,0.00017808,2]
[350977238,1738263046857,-2492.92,0.00017808,2]
[350977239,1738263046866,-1152.88,0.00017808,2]
[350977240,1738263046878,-207.18584108,0.000179,2]
[350977241,1738263046887,-866.84,0.00017945,2]